bitfinex/quotes_BTCUSD_20250831
["timestamp","ask_amount","ask_price","bid_price","bid_amount"]
[1756615930048,0.48181065,108930.0,108920.0,0.12573001]
[1756615930612,0.48181065,108930.0,108920.0,0.27933001]
[1756615930840,0.78001716,108930.0,108920.0,0.27941001]
[1756615932511,0.48181065,108930.0,108920.0,0.27941001]
[1756615933770,0.18360414,108930.0,108920.0,0.27941001]
[1756615933926,0.48181065,108930.0,108920.0,0.27941001]
[1756615934154,0.18360414,108930.0,108920.0,0.27426001]
[1756615934333,0.18360414,108930.0,108920.0,0.0276]
[1756615934334,1.2917817,108930.0,108920.0,0.0276]
[1756615934562,1.325807,108930.0,108920.0,0.0276]
[1756615934757,0.183621,108920.0,108910.0,0.22844]
[1756615935088,0.183621,108920.0,108910.0,0.34902401]
[1756615935089,0.78003402,108920.0,108910.0,0.34902401]
[1756615935820,0.78003402,108920.0,108910.0,0.35102401]
[1756615936245,0.78003402,108920.0,108910.0,0.19438401]
[1756615936377,1.07824053,108920.0,108910.0,0.0032]
[1756615936604,0.82475599,108920.0,108910.0,0.1578]
[1756615936804,1.4629625,108920.0,108910.0,0.1578]
[1756615937408,1.4629625,108920.0,108910.0,0.0032]
[1756615937609,1.16475599,108920.0,108910.0,0.0012]
[1756615938072,1.4629625,108920.0,108910.0,0.0002]
[1756615938506,1.4639625,108920.0,108910.0,0.0002]
[1756615939311,0.56934297,108920.0,108910.0,0.0002]
[1756615939509,1.14864102,108920.0,108910.0,0.00544]
[1756615940518,1.14964102,108920.0,108910.0,0.00544]
[1756615941062,1.14964102,108920.0,108910.0,0.00335]
[1756615956132,1.44784753,108920.0,108910.0,0.00335]
[1756615956371,1.44784753,108920.0,108910.0,0.0002]
[1756615957225,1.60208753,108920.0,108910.0,0.0002]
[1756615959863,1.44784753,108920.0,108910.0,0.0002]
[1756615960061,1.53614385,108920.0,108910.0,0.0002]
[1756615960505,1.69034385,108920.0,108910.0,0.0002]
[1756615961050,1.60204753,108920.0,108910.0,0.0002]
[1756615961256,1.61914507,108920.0,108910.0,0.0002]
[1756615965516,1.61914507,108920.0,108910.0,0.00335]
[1756615965948,1.60204753,108920.0,108910.0,0.00335]
[1756615966143,1.61916452,108920.0,108910.0,0.00335]
[1756615967130,1.61916452,108920.0,108910.0,0.0002]
[1756615967526,1.65972558,108920.0,108910.0,0.0002]
[1756615968501,1.61916452,108920.0,108910.0,0.0002]
[1756615973337,1.59155752,108920.0,108910.0,0.0002]
[1756615974706,1.59797764,108920.0,108910.0,0.0002]
[1756615974902,1.62558464,108920.0,108910.0,0.0002]
[1756615976908,1.62558571,108920.0,108910.0,0.0002]
[1756615977030,1.71388203,108920.0,108910.0,0.0002]
[1756615977688,1.71388147,108920.0,108910.0,0.0002]
[1756615981857,1.71392147,108920.0,108910.0,0.0002]
[1756615982477,1.71388147,108920.0,108910.0,0.0002]
[1756615982870,1.55968147,108920.0,108910.0,0.0002]
[1756615983225,1.71388147,108920.0,108910.0,0.0002]
[1756615984972,0.52363786,108910.0,108900.0,1e-08]
[1756615985172,1.68425133,108910.0,108900.0,1e-08]
[1756615985336,1.71225927,108910.0,108900.0,1e-08]
[1756615985708,1.7319562,108910.0,108900.0,1e-08]
[1756615986072,1.7356382,108910.0,108900.0,1e-08]
[1756615986268,1.70950109,108910.0,108900.0,1e-08]
[1756615986499,1.71591263,108910.0,108900.0,1e-08]
[1756615986855,6.12113092,108910.0,108900.0,1e-08]
[1756615987058,6.21411093,108910.0,108900.0,1e-08]
[1756615987299,6.19442364,108910.0,108900.0,1e-08]
[1756615987863,6.19642364,108910.0,108900.0,1e-08]
[1756615988474,6.21609774,108910.0,108900.0,1e-08]
[1756615988664,6.21809774,108910.0,108900.0,1e-08]
[1756615988867,6.21807745,108910.0,108900.0,1e-08]
[1756615989263,6.19640335,108910.0,108900.0,1e-08]
[1756615989502,6.19840335,108910.0,108900.0,1e-08]
[1756615990893,6.04424335,108910.0,108900.0,1e-08]
[1756615991098,6.19832335,108910.0,108900.0,1e-08]
[1756615994543,6.19824335,108910.0,108900.0,1e-08]
[1756615997210,6.19820865,108910.0,108900.0,1e-08]
[1756615997549,6.19820856,108910.0,108900.0,1e-08]
[1756615998607,6.21785794,108910.0,108900.0,1e-08]
[1756616004048,0.52365472,108900.0,108890.0,0.0002]
[1756616004194,6.09744341,108900.0,108890.0,0.0002]
[1756616004394,1.71191241,108900.0,108890.0,0.00227]
[1756616004824,1.7532181,108900.0,108890.0,0.00227]
[1756616005223,1.7818341,108900.0,108890.0,0.00227]
[1756616005426,1.7828341,108900.0,108890.0,0.00227]
[1756616005944,1.7828341,108900.0,108890.0,0.00551]
[1756616006523,1.6289541,108900.0,108890.0,0.00551]
[1756616006862,1.7827541,108900.0,108890.0,0.00551]
[1756616007685,1.77636794,108900.0,108890.0,0.00551]
[1756616007843,1.78276834,108900.0,108890.0,0.00551]
[1756616008047,1.74146265,108900.0,108890.0,0.00551]
[1756616008470,1.72439491,108900.0,108890.0,0.00551]
[1756616008685,1.74146573,108900.0,108890.0,0.00551]
[1756616011403,1.51679158,108900.0,108890.0,0.00551]
[1756616011647,1.7004463,108900.0,108890.0,0.00551]
[1756616012590,1.61214998,108900.0,108890.0,0.00551]
[1756616013616,1.31316941,108900.0,108890.0,0.00551]
[1756616014249,1.31530941,108900.0,108890.0,0.00551]
[1756616014450,1.31530941,108900.0,108890.0,0.0002]
[1756616014648,5.70084041,108900.0,108890.0,0.0002]
[1756616014869,5.8304575,108900.0,108890.0,0.0002]
[1756616015368,5.8284575,108900.0,108890.0,0.0002]
[1756616015508,6.1724575,108900.0,108890.0,0.0002]
[1756616015941,7.23213704,108900.0,108890.0,0.0002]
[1756616016148,7.25184274,108900.0,108890.0,0.0002]
[1756616018515,7.2518438,108900.0,108890.0,0.0002]
[1756616019380,7.25184036,108900.0,108890.0,0.0002]
[1756616020117,7.09660036,108900.0,108890.0,0.0002]
[1756616020322,6.35578083,108900.0,108890.0,0.00551]
[1756616020887,6.35578083,108900.0,108890.0,0.0002]
[1756616025517,6.35577925,108900.0,108890.0,0.0002]
[1756616025729,6.35601925,108900.0,108890.0,0.0002]
[1756616026206,6.20197925,108900.0,108890.0,0.00551]
[1756616026422,6.35601925,108900.0,108890.0,0.00551]
[1756616027485,6.20197925,108900.0,108890.0,0.0002]
[1756616027688,6.35601925,108900.0,108890.0,0.00344]
[1756616028098,6.20197925,108900.0,108890.0,0.00551]
[1756616028309,6.35601925,108900.0,108890.0,0.00551]
[1756616028762,6.19983925,108900.0,108890.0,0.00551]
[1756616028941,6.35621925,108900.0,108890.0,0.00551]
[1756616029170,6.3562167,108900.0,108890.0,0.00344]
[1756616029555,6.3562167,108900.0,108890.0,0.0002]
[1756616031661,6.3562167,108900.0,108890.0,0.00319]
[1756616033508,6.3562167,108900.0,108890.0,0.0002]
[1756616035160,6.35621663,108900.0,108890.0,0.0002]
[1756616037854,6.26792031,108900.0,108890.0,0.00527]
[1756616038180,6.26792031,108900.0,108890.0,0.00319]
[1756616038381,6.26792031,108900.0,108890.0,0.0002]
[1756616039786,6.26792303,108900.0,108890.0,0.0002]
[1756616040355,6.26792414,108900.0,108890.0,0.0002]
[1756616040557,6.35622046,108900.0,108890.0,0.0002]
[1756616041372,6.35622046,108900.0,108890.0,1e-08]
[1756616041558,0.55167952,108890.0,108880.0,0.00299]
[1756616041754,6.00962671,108890.0,108880.0,0.00299]
[1756616041966,1.62409571,108890.0,108880.0,0.00507]
[1756616042173,1.67805875,108890.0,108880.0,0.00507]
[1756616042401,1.70765696,108890.0,108880.0,0.00507]
[1756616042823,1.35354741,108890.0,108880.0,0.00554726]
[1756616043452,1.35454741,108890.0,108880.0,0.00554726]
[1756616044340,1.20955515,108890.0,108880.0,0.00554726]
[1756616044510,1.33586722,108890.0,108880.0,0.00554726]
[1756616045867,1.18154722,108890.0,108880.0,0.00554726]
[1756616046075,1.42412354,108890.0,108880.0,0.00554726]
[1756616047829,1.20126255,108890.0,108880.0,0.00554726]
[1756616048025,1.03758071,108890.0,108880.0,0.00554726]
[1756616048228,1.33578722,108890.0,108880.0,0.00554726]
[1756616049242,1.31226935,108890.0,108880.0,0.00554726]
[1756616049399,1.33579968,108890.0,108880.0,0.00554726]
[1756616049593,1.269856,108890.0,108880.0,0.00554726]
[1756616049807,1.33575968,108890.0,108880.0,0.00554726]
[1756616050445,1.00993617,108890.0,108880.0,0.00554726]
[1756616050840,0.85573617,108890.0,108880.0,0.00554726]
[1756616051040,1.00989617,108890.0,108880.0,0.00554726]
[1756616053287,1.00985422,108890.0,108880.0,0.00554726]
[1756616053661,0.85573422,108890.0,108880.0,0.00554726]
[1756616053878,1.00985422,108890.0,108880.0,0.00554726]
[1756616054692,0.71164771,108890.0,108880.0,0.00554726]
[1756616054868,1.15394073,108890.0,108880.0,0.00554726]
[1756616055056,1.30806073,108890.0,108880.0,0.00554726]
[1756616056333,1.28453235,108890.0,108880.0,0.00554726]
[1756616056578,1.30805153,108890.0,108880.0,0.00554726]
[1756616057662,0.66984502,108890.0,108880.0,0.00554726]
[1756616057897,0.6634307,108890.0,108880.0,0.00554726]
[1756616058259,1.0034307,108890.0,108880.0,0.00554726]
[1756616058693,0.8493107,108890.0,108880.0,0.00554726]
[1756616058907,1.0034707,108890.0,108880.0,0.00554726]
[1756616059104,0.98636584,108890.0,108880.0,0.00554726]
[1756616059695,0.83220584,108890.0,108880.0,0.00554726]
[1756616060764,0.83220584,108890.0,108880.0,0.15554726]
[1756616060986,0.83220584,108890.0,108880.0,0.00554726]
[1756616061770,0.53399933,108890.0,108880.0,0.09852727]
[1756616062008,0.01032774,108890.0,108880.0,0.31085415]
[1756616062245,0.29920651,108890.0,108880.0,0.43633573]
[1756616062829,0.29920651,108890.0,108880.0,0.46394473]
[1756616063048,0.001,108890.0,108880.0,0.46394473]
[1756616063187,0.29920651,108890.0,108880.0,0.46394473]
[1756616063542,0.49218373,108890.0,108880.0,0.46394473]
[1756616063987,0.49218373,108890.0,108880.0,0.30982473]
[1756616064180,0.49218373,108890.0,108880.0,0.12613627]
[1756616064386,0.49218373,108890.0,108880.0,0.28025627]
[1756616065850,0.49218373,108890.0,108880.0,0.46394473]
[1756616068198,0.49218373,108890.0,108880.0,0.12613627]
[1756616068397,0.49218373,108890.0,108880.0,0.46394473]
[1756616068600,0.49218373,108890.0,108880.0,0.28025627]
[1756616068811,0.49218373,108890.0,108880.0,0.46394473]
[1756616069178,0.19397722,108890.0,108880.0,0.46394473]
[1756616069383,0.49218373,108890.0,108880.0,0.46394473]
[1756616070934,0.30851214,108890.0,108880.0,0.46394473]
[1756616072706,0.49218373,108890.0,108880.0,0.30982473]
[1756616072880,0.49218373,108890.0,108880.0,0.46386473]
[1756616074503,0.49218373,108890.0,108880.0,0.46382473]
[1756616077781,0.30851214,108890.0,108880.0,0.46382473]
[1756616077982,0.49218373,108890.0,108880.0,0.46382473]
[1756616083440,0.01030563,108890.0,108880.0,0.46382473]
[1756616083881,0.30851214,108890.0,108880.0,0.46382473]
[1756616084105,0.49218373,108890.0,108880.0,0.46382473]
[1756616086454,0.19397722,108890.0,108880.0,0.46382473]
[1756616086666,0.49218373,108890.0,108880.0,0.46382473]
[1756616090355,0.001,108890.0,108880.0,0.78297006]
[1756616090578,0.001,108890.0,108880.0,0.48476355]
[1756616090795,0.001,108890.0,108880.0,0.78297006]
[1756616091133,0.001,108890.0,108880.0,0.83260763]
[1756616091498,0.48186127,108900.0,108890.0,0.18367159]
[1756616091717,0.48186127,108900.0,108890.0,0.2766516]
[1756616091924,0.48186127,108900.0,108890.0,0.2819116]
[1756616092347,0.19281975,108910.0,108890.0,0.2819116]
[1756616092560,0.53281975,108910.0,108900.0,0.24682001]
[1756616092774,0.53479975,108910.0,108900.0,0.24682001]
[1756616093914,0.83300626,108910.0,108900.0,0.24682001]
[1756616094377,0.83400626,108910.0,108900.0,0.24682001]
[1756616094586,0.53579975,108910.0,108900.0,0.24682001]
[1756616094793,0.83400626,108910.0,108900.0,0.24682001]
[1756616095196,0.84301519,108910.0,108900.0,0.24682001]
[1756616095619,0.54480868,108910.0,108900.0,0.24682001]
[1756616095840,0.84301519,108910.0,108900.0,0.24682001]
[1756616099267,0.54480868,108910.0,108900.0,0.24682001]
[1756616099470,0.84301519,108910.0,108900.0,0.24682001]
[1756616100828,0.54480868,108910.0,108900.0,0.24682001]
[1756616101068,0.84301519,108910.0,108900.0,0.24682001]
[1756616102920,0.54480868,108910.0,108900.0,0.25007001]
[1756616103127,0.84301519,108910.0,108900.0,0.25007001]
[1756616103708,0.84301519,108910.0,108900.0,0.25208001]
[1756616104519,0.84301519,108910.0,108900.0,0.27968701]
[1756616106519,0.54480868,108910.0,108900.0,0.27968701]
[1756616106705,0.01000893,108910.0,108900.0,0.46334173]
[1756616106922,0.4918533,108910.0,108900.0,0.46334173]
[1756616107098,0.30821544,108910.0,108900.0,0.46334173]
[1756616107832,0.001,108910.0,108900.0,0.46334173]
[1756616108036,0.29920651,108910.0,108900.0,0.46334173]
[1756616109059,0.29920651,108910.0,108900.0,0.46434173]
[1756616109745,0.29820651,108910.0,108900.0,0.46434173]
[1756616110511,0.49100856,108920.0,108900.0,0.46534173]
[1756616110750,0.83100856,108920.0,108910.0,0.00325]
[1756616110965,1.12921507,108920.0,108910.0,0.09623001]
[1756616111176,1.12921507,108920.0,108910.0,0.09824001]
[1756616112173,0.53280205,108920.0,108910.0,0.09824001]
[1756616112399,1.12921507,108920.0,108910.0,0.09824001]
[1756616113008,1.13926911,108920.0,108910.0,0.09824001]
[1756616113190,1.13926911,108920.0,108910.0,0.28187787]
[1756616113393,1.13826911,108920.0,108910.0,0.28187787]
[1756616115044,1.13826911,108920.0,108910.0,0.12584301]
[1756616115499,1.13826911,108920.0,108910.0,0.12684301]
[1756616116451,1.13826911,108920.0,108910.0,0.12784301]
[1756616117887,0.523621,108920.0,108910.0,0.46548087]
[1756616118124,0.82182751,108920.0,108910.0,0.46548087]
[1756616118331,0.82182751,108920.0,108910.0,0.31148087]
[1756616118471,0.82182751,108920.0,108910.0,0.46548087]
[1756616118662,1.12003402,108920.0,108910.0,0.46548087]
[1756616119068,1.1290899,108920.0,108910.0,0.46548087]
[1756616119830,0.83088339,108920.0,108910.0,0.46548087]
[1756616123244,0.30726239,108920.0,108910.0,0.46548087]
[1756616123451,0.49088339,108920.0,108910.0,0.46548087]
[1756616125304,0.7890899,108920.0,108910.0,0.46536087]
[1756616126182,0.48182751,108920.0,108910.0,0.53592087]
[1756616126524,0.29820651,108920.0,108910.0,0.53592087]
[1756616126726,0.48182751,108920.0,108910.0,0.53592087]
[1756616127491,0.29820651,108920.0,108910.0,0.53592087]
[1756616130707,0.5421132,108930.0,108920.0,0.183621]
[1756616130906,0.5440932,108930.0,108920.0,0.27660101]
[1756616131109,0.5440932,108930.0,108920.0,0.27960101]
[1756616131258,0.5440932,108930.0,108920.0,0.27660101]
[1756616131459,0.5440932,108930.0,108920.0,0.27960101]
[1756616132052,0.84229971,108930.0,108920.0,0.30725066]
[1756616133553,0.5440932,108930.0,108920.0,0.30725066]
[1756616133753,0.84229971,108930.0,108920.0,0.30725066]
[1756616134451,0.84229971,108930.0,108920.0,0.30938066]
[1756616135570,0.5440932,108930.0,108920.0,0.30938066]
[1756616135809,0.84229971,108930.0,108920.0,0.30938066]
[1756616138077,0.83099085,108930.0,108920.0,0.30938066]
[1756616138704,0.83297085,108930.0,108920.0,0.30938066]
[1756616140081,0.81576878,108930.0,108920.0,0.30938066]
[1756616140485,0.51756227,108930.0,108920.0,0.30938066]
[1756616140705,0.81576878,108930.0,108920.0,0.30938066]
[1756616140899,0.82494898,108930.0,108920.0,0.30938066]
[1756616142012,0.83411472,108930.0,108920.0,0.30725066]
[1756616142209,0.83411472,108930.0,108920.0,0.45805066]
[1756616142423,1.13391123,108930.0,108920.0,0.12062966]
[1756616142563,1.13391123,108930.0,108920.0,0.27442966]
[1756616143372,1.13391123,108930.0,108920.0,0.24682766]
[1756616143935,1.28771123,108930.0,108920.0,0.15384765]
[1756616145446,0.53749821,108930.0,108920.0,0.15384765]
[1756616145612,1.13391123,108930.0,108920.0,0.15384765]
[1756616147448,1.15103981,108930.0,108920.0,0.15384765]
[1756616149684,1.15103981,108930.0,108920.0,0.15384765]
[1756616149903,1.15103981,108930.0,108920.0,0.18145065]
[1756616151900,1.14944981,108930.0,108920.0,0.18145065]
[1756616152934,1.13232123,108930.0,108920.0,0.18145065]
[1756616156541,1.43052774,108930.0,108920.0,0.18145065]
[1756616157861,1.13232123,108930.0,108920.0,0.18145065]
[1756616160151,1.43052774,108930.0,108920.0,0.18145065]
[1756616161014,1.44765765,108930.0,108920.0,0.15384765]
[1756616161478,1.43052774,108930.0,108920.0,0.15384765]
[1756616161987,0.53590821,108930.0,108920.0,0.15920765]
[1756616162245,1.13232123,108930.0,108920.0,0.15920765]
[1756616162412,1.13232123,108930.0,108920.0,0.18681165]
[1756616164267,1.13034123,108930.0,108920.0,0.18681165]
[1756616169046,1.13232123,108930.0,108920.0,0.18681165]
[1756616170380,1.13232123,108930.0,108920.0,0.18465165]
[1756616172325,1.14946091,108930.0,108920.0,0.18465165]
[1756616172573,1.14946091,108930.0,108920.0,0.18681165]
[1756616175101,1.13232123,108930.0,108920.0,0.18681165]
[1756616175259,1.1494609,108930.0,108920.0,0.18681165]
[1756616177293,1.13034123,108930.0,108920.0,0.18681165]
[1756616179506,0.34111462,108930.0,108920.0,0.46341266]
[1756616179905,0.82292527,108930.0,108920.0,0.46341266]
[1756616180080,0.93752764,108930.0,108920.0,0.46341266]
[1756616180841,0.30737225,108930.0,108920.0,0.46341266]
[1756616183325,0.30737225,108930.0,108920.0,0.36341266]
[1756616184201,0.29820651,108930.0,108920.0,0.36341266]
[1756616185392,0.29820651,108930.0,108920.0,0.30956501]
[1756616185604,0.29820651,108930.0,108920.0,0.46336501]
[1756616188895,0.49080659,108940.0,108930.0,0.18360414]
[1756616189089,0.7890131,108940.0,108930.0,0.28174415]
[1756616189503,0.7890131,108940.0,108930.0,0.30934415]
[1756616190100,0.7920131,108940.0,108930.0,0.46310415]
[1756616198418,0.79200971,108940.0,108930.0,0.30934415]
[1756616198618,0.19559669,108940.0,108930.0,0.61310415]
[1756616198866,0.60842242,108940.0,108930.0,0.46310415]
[1756616199065,0.79200971,108940.0,108930.0,0.30934415]
[1756616199231,0.79200971,108940.0,108930.0,0.46310415]
[1756616199614,0.79200971,108940.0,108930.0,0.30934415]
[1756616199874,0.79200971,108940.0,108930.0,0.46310415]
[1756616200138,0.60842242,108940.0,108930.0,0.46310415]
[1756616200313,0.60842242,108940.0,108930.0,0.30934415]
[1756616200492,0.79200971,108940.0,108930.0,0.46310415]
[1756616200994,0.60842242,108940.0,108930.0,0.46310415]
[1756616201201,0.79200971,108940.0,108930.0,0.46310415]
[1756616201582,0.60842242,108940.0,108930.0,0.46306415]
[1756616206619,0.60742242,108940.0,108930.0,0.46306415]
[1756616206821,0.60542242,108940.0,108930.0,0.46306415]
[1756616207016,0.60542242,108940.0,108930.0,0.46406415]
[1756616207262,0.60542242,108940.0,108930.0,0.46506415]
[1756616207664,0.60542242,108940.0,108930.0,0.53566415]
[1756616208212,0.18361743,108950.0,108940.0,0.18357266]
[1756616208213,0.34,108950.0,108940.0,0.18357266]
[1756616208414,1.11998346,108950.0,108940.0,0.27862267]
[1756616208636,0.63820651,108950.0,108940.0,0.28171267]
[1756616208865,0.63820651,108950.0,108940.0,0.30930867]
[1756616211945,0.64745488,108950.0,108940.0,0.30930867]
[1756616213042,0.64745488,108950.0,108940.0,0.31030867]
[1756616213251,0.64745488,108950.0,108940.0,0.31130867]
[1756616213446,0.49100358,108960.0,108950.0,0.18357044]
[1756616213704,0.79119009,108960.0,108950.0,0.43027045]
[1756616214080,0.19477707,108960.0,108950.0,0.43543045]
[1756616214261,0.79119009,108960.0,108950.0,0.43543045]
[1756616214464,0.80058169,108960.0,108950.0,0.43543045]
[1756616214693,0.79140402,108960.0,108950.0,0.46302545]
[1756616215118,0.60778462,108960.0,108950.0,0.46302545]
[1756616216816,0.60778462,108960.0,108950.0,0.46502545]
[1756616217445,0.0113716,108960.0,108950.0,0.46502545]
[1756616217653,0.60778462,108960.0,108950.0,0.46502545]
[1756616218433,0.60580462,108960.0,108950.0,0.46502545]
[1756616218655,0.60580462,108960.0,108950.0,0.31130545]
[1756616218868,0.60580462,108960.0,108950.0,0.46498545]
[1756616220736,0.60580462,108960.0,108950.0,0.38190545]
[1756616220947,0.60580462,108960.0,108950.0,0.53558545]
[1756616221531,0.18365065,108970.0,108960.0,0.18355359]
[1756616221737,1.12006367,108970.0,108960.0,0.2796636]
[1756616221908,1.12204367,108970.0,108960.0,0.2796636]
[1756616222109,1.12204367,108970.0,108960.0,0.2765336]
[1756616222515,1.12204367,108970.0,108960.0,0.2816936]
[1756616222686,1.12015128,108970.0,108960.0,0.3092856]
[1756616223530,1.12957329,108970.0,108960.0,0.3092856]
[1756616223740,1.13155329,108970.0,108960.0,0.3092856]
[1756616225073,0.30771613,108970.0,108960.0,0.3092856]
[1756616225683,0.60592264,108970.0,108960.0,0.3092856]
[1756616225898,0.30771613,108970.0,108960.0,0.3092856]
[1756616227205,0.30771613,108970.0,108960.0,0.4629256]
[1756616227784,0.00950962,108970.0,108960.0,0.4629256]
[1756616227981,0.30771613,108970.0,108960.0,0.4629256]
[1756616228771,0.00950962,108970.0,108960.0,0.4629256]
[1756616228974,8.761e-05,108970.0,108960.0,0.4629256]
[1756616229177,0.29829412,108970.0,108960.0,0.4629256]
[1756616230351,0.29829412,108970.0,108960.0,0.4659256]
[1756616230553,0.29829412,108970.0,108960.0,0.3142856]
[1756616230782,0.29829412,108970.0,108960.0,0.4679256]
[1756616235227,8.761e-05,108970.0,108960.0,0.4679256]
[1756616235445,0.29829412,108970.0,108960.0,0.4679256]
[1756616237491,0.19828412,108970.0,108960.0,0.4679256]
[1756616237940,0.19828412,108970.0,108960.0,0.48886442]
[1756616238950,0.19828412,108970.0,108960.0,0.63886442]
[1756616239149,0.00859336,108970.0,108960.0,0.48882442]
[1756616243688,0.19269515,108980.0,108970.0,0.18353675]
[1756616243818,0.79108817,108980.0,108970.0,0.27651676]
[1756616244432,0.79108817,108980.0,108970.0,0.34707676]
[1756616244831,0.79108817,108980.0,108970.0,0.37466376]
[1756616245446,0.79108817,108980.0,108970.0,0.37566376]
[1756616246581,0.79108817,108980.0,108970.0,0.37666376]
[1756616247927,0.79108817,108980.0,108970.0,0.37965376]
[1756616251885,0.49288166,108980.0,108970.0,0.37965376]
[1756616252094,0.79108817,108980.0,108970.0,0.37965376]
[1756616257469,0.79108817,108980.0,108970.0,0.38172376]
[1756616258951,0.79108817,108980.0,108970.0,0.35174701]
[1756616260095,0.79108817,108980.0,108970.0,0.53528376]
[1756616264528,0.79108817,108980.0,108970.0,0.34664701]
[1756616269534,1.09088468,108980.0,108970.0,0.19312701]
[1756616269739,1.43088468,108980.0,108970.0,0.34664701]
[1756616271379,1.13267817,108980.0,108970.0,0.34664701]
[1756616272298,1.13108817,108980.0,108970.0,0.34664701]
[1756616275290,1.13108817,108980.0,108970.0,0.34974701]
[1756616277884,1.13108817,108980.0,108970.0,0.35180701]
[1756616284580,1.13108817,108980.0,108970.0,0.35176701]
[1756616285128,1.12910817,108980.0,108970.0,0.35176701]
[1756616287598,0.60558808,108980.0,108970.0,0.53530376]
[1756616288721,0.78910799,108980.0,108970.0,0.53530376]
[1756616290526,0.60558808,108980.0,108970.0,0.53530376]
[1756616290736,0.78910799,108980.0,108970.0,0.53530376]
[1756616292130,0.78350799,108980.0,108970.0,0.53530376]
[1756616292266,0.59672419,108980.0,108970.0,0.53530376]
[1756616292471,0.77993293,108980.0,108970.0,0.53530376]
[1756616292733,0.59641302,108980.0,108970.0,0.53530376]
[1756616292904,0.29820651,108980.0,108970.0,0.53530376]
[1756616294106,0.19275266,108990.0,108970.0,0.53530376]
[1756616294389,0.53275266,108990.0,108980.0,0.09608001]
[1756616294575,0.53473266,108990.0,108980.0,0.09608001]
[1756616295126,0.53473266,108990.0,108980.0,0.12366601]
[1756616295625,1.13114568,108990.0,108980.0,0.12366601]
[1756616296055,1.13114568,108990.0,108980.0,0.12572601]
[1756616297955,1.13859659,108990.0,108980.0,0.30924592]
[1756616302758,1.13859659,108990.0,108980.0,0.31024592]
[1756616303213,0.20218357,108990.0,108980.0,0.31024592]
[1756616303410,0.79859659,108990.0,108980.0,0.31024592]
[1756616304019,0.79859659,108990.0,108980.0,0.31124592]
[1756616304798,0.79859659,108990.0,108980.0,0.28116601]
[1756616307047,0.79859659,108990.0,108980.0,0.46468592]
[1756616316000,0.79859659,108990.0,108980.0,0.28116601]
[1756616317895,0.79859659,108990.0,108980.0,0.46468592]
[1756616325409,0.79859659,108990.0,108980.0,0.53524592]
[1756616325749,0.79859659,108990.0,108980.0,0.35172601]
[1756616326483,0.79859659,108990.0,108980.0,0.19828601]
[1756616326638,0.80057659,108990.0,108980.0,0.35168601]
[1756616327750,0.80057659,108990.0,108980.0,0.53520592]
[1756616327950,0.80057659,108990.0,108980.0,0.35168601]
[1756616332776,0.80057659,108990.0,108980.0,0.19828601]
[1756616332981,0.80057659,108990.0,108980.0,0.35164601]
[1756616334459,0.80057659,108990.0,108980.0,0.19828601]
[1756616334802,0.80057659,108990.0,108980.0,0.34648601]
[1756616337468,0.80057659,108990.0,108980.0,0.34959601]
[1756616338019,0.80057659,108990.0,108980.0,0.35170601]
[1756616338479,0.56522477,108990.0,108980.0,0.35170601]
[1756616338634,0.74874324,108990.0,108980.0,0.35170601]
[1756616338834,0.75791839,108990.0,108980.0,0.35170601]
[1756616339329,0.75791839,108990.0,108980.0,0.19834601]
[1756616339567,0.75791839,108990.0,108980.0,0.37566067]
[1756616339890,0.75791839,108990.0,108980.0,0.37355067]
[1756616340345,0.75791839,108990.0,108980.0,0.37566067]
[1756616340724,0.75791839,108990.0,108980.0,0.22230067]
[1756616340930,0.75791839,108990.0,108980.0,0.37566067]
[1756616341136,0.75800596,108990.0,108980.0,0.37566067]
[1756616342563,0.76717309,108990.0,108980.0,0.37566067]
[1756616343755,0.20194832,108990.0,108980.0,0.37566067]
[1756616344008,0.79836134,108990.0,108980.0,0.37566067]
[1756616344600,0.79836134,108990.0,108980.0,0.30510067]
[1756616345276,0.50015483,108990.0,108980.0,0.48862058]
[1756616347472,0.49097968,108990.0,108980.0,0.48862058]
[1756616348292,0.49096428,108990.0,108980.0,0.63862058]
[1756616348621,0.49096428,108990.0,108980.0,0.48862058]
[1756616352599,0.29829408,108990.0,108980.0,0.5095594]
[1756616354209,8.757e-05,108990.0,108980.0,0.5095594]
[1756616354422,0.29829408,108990.0,108980.0,0.5095594]
[1756616355191,8.757e-05,108990.0,108980.0,0.5095594]
[1756616355402,0.29829408,108990.0,108980.0,0.5095594]
[1756616356644,0.29829408,108990.0,108980.0,0.55919697]
[1756616357464,0.29829408,108990.0,108980.0,0.5095594]
[1756616359623,0.29829408,108990.0,108980.0,0.55919697]
[1756616362043,8.757e-05,108990.0,108980.0,0.55919697]
[1756616362205,0.29829408,108990.0,108980.0,0.55919697]
[1756616366731,0.29829408,108990.0,108980.0,0.40583697]
[1756616366953,0.29829408,108990.0,108980.0,0.55911697]
[1756616368786,0.29829408,108990.0,108980.0,0.40583697]
[1756616368948,0.29829408,108990.0,108980.0,0.55907697]
[1756616371377,0.29829408,108990.0,108980.0,0.40583697]
[1756616371582,0.29829408,108990.0,108980.0,0.55907697]
[1756616372308,8.757e-05,108990.0,108980.0,0.55907697]
[1756616372507,0.29829408,108990.0,108980.0,0.55907697]
[1756616373471,0.29829408,108990.0,108980.0,0.40583697]
[1756616373671,0.78000366,108990.0,108980.0,0.34939824]
[1756616373925,0.18359064,108990.0,108980.0,0.27580601]
[1756616374119,0.78000366,108990.0,108980.0,0.27580601]
[1756616374620,0.29829408,108990.0,108980.0,0.60932592]
[1756616374868,0.29829408,108990.0,108980.0,0.48550474]
[1756616375258,0.29829408,108990.0,108980.0,0.33226474]
[1756616375464,0.29829408,108990.0,108980.0,0.48550474]
[1756616376499,0.29829408,108990.0,108980.0,0.56815931]
[1756616376980,0.29829408,108990.0,108980.0,0.41491931]
[1756616377191,8.757e-05,108990.0,108980.0,0.51640174]
[1756616377402,0.29829408,108990.0,108980.0,0.56603931]
[1756616379566,0.29829408,108990.0,108980.0,0.41279931]
[1756616379768,0.29829408,108990.0,108980.0,0.56603931]
[1756616380769,0.29829408,108990.0,108980.0,0.56815931]
[1756616382999,0.29829408,108990.0,108980.0,0.41491931]
[1756616383202,0.29829408,108990.0,108980.0,0.56815931]
[1756616385746,0.29829408,108990.0,108980.0,0.56818626]
[1756616386533,0.29829408,108990.0,108980.0,0.53514231]
[1756616392345,8.757e-05,108990.0,108980.0,0.53514231]
[1756616392679,0.29829408,108990.0,108980.0,0.49029088]
[1756616395898,8.757e-05,108990.0,108980.0,0.49029088]
[1756616396049,0.29829408,108990.0,108980.0,0.49029088]
[1756616396885,8.757e-05,108990.0,108980.0,0.49029088]
[1756616397084,0.29829408,108990.0,108980.0,0.49029088]
[1756616397361,8.757e-05,108990.0,108980.0,0.49029088]
[1756616397788,0.29829408,108990.0,108980.0,0.49029088]
[1756616398163,0.29829408,108990.0,108980.0,0.49025088]
[1756616398566,0.29829408,108990.0,108980.0,0.49021088]
[1756616400250,0.29829408,108990.0,108980.0,0.33705088]
[1756616400496,0.29829408,108990.0,108980.0,0.53765168]
[1756616401031,8.757e-05,108990.0,108980.0,0.53973168]